Cogmind - Beta 17.1 @@@ ROGUE MODE // 2026.09.03 @ 01:02:22 Player: lavinia Result: Destroyed self with Grenade Launcher Performance ------------- Evolutions (0) 0 Regions Visited (1) 200 Robots Destroyed (35) 175 Value Destroyed (876) 876 Prototype IDs (4) 80 Alien Tech Used (0) 0 Bonus (8) 8 TOTAL SCORE: 1339 Bonus ------- High Alert Combat Kills 8 Cogmind --------- Core Integrity 0/250 Matter 166/300 Energy 119/125 System Corruption 1% Temperature Cool (0) Movement Rolling (140) Ox4 Location -10/Materials Parts ------- > --- POWER (1) -------- Light Ion Engine > --- PROPULSION (2) --- Wheel Wheel > --- UTILITY (2) ------ Huge Storage Unit Improved Terrain Scanner > --- WEAPON (2) ------- Grenade Launcher Mini Grenade Launcher > --- INVENTORY (25) --- Improved Heat Sink Medium Matter Pod (0) High-capacity Matter Pod (0) High-capacity Matter Pod (0) High-capacity Matter Pod (0) Particle Gun Particle Gun Mini Grenade Launcher Mini Grenade Launcher Mini Grenade Launcher Peak State ------------ > --- POWER ------------ Light Ion Engine > --- PROPULSION ------- Wheel Wheel > --- UTILITY ---------- Huge Storage Unit Improved Terrain Scanner > --- WEAPON ----------- Particle Gun Particle Gun > --- INVENTORY -------- Medium Matter Pod Grenade Launcher Mini Grenade Launcher Mini Grenade Launcher Mini Grenade Launcher Mini Grenade Launcher [Rating: 12] Favorites ----------- Power Light Ion Engine Engine Light Ion Engine Propulsion Wheel Wheel Wheel Utility Improved Terrain Scanner Device Improved Terrain Scanner Storage Huge Storage Unit Weapon Grenade Launcher Energy Gun Particle Gun Ballistic Gun Assault Rifle Launcher Grenade Launcher Build | -11 -10 ------- Run | Yrd Mat Slots Evolved . | . . Power . | . . Propulsion . | . . Utility . | . . Weapon . | . . Parts Attached 21 | 5 16 Power 3 | 1 2 Engine 3 | 1 2 Core . | . . Reactor . | . . Propulsion 5 | 2 3 Treads . | . . Leg . | . . Wheel 5 | 2 3 Hover . | . . Flight . | . . Utility 4 | . 4 Device 1 | . 1 Storage 3 | . 3 Processor . | . . Hackware . | . . Protection . | . . Artifact . | . . Weapon 9 | 2 7 Energy Gun 4 | 1 3 Energy Cannon . | . . Ballistic Gun 1 | 1 . Ballistic Cannon . | . . Launcher 4 | . 4 Special Weapon . | . . Impact Weapon . | . . Slashing Weapon . | . . Piercing Weapon . | . . Special Melee Weapon . | . . Unidentified Prototypes . | . . Parts Lost 7 | . 7 Power 1 | . 1 Propulsion 3 | . 3 Utility . | . . Weapon 3 | . 3 Highest Loss Streak 3 | . 3 To Critical Strikes . | . . Average Backups 7 | . 7 Power . | . . Propulsion . | . . Utility 1 | . 2 Weapon 4 | . 4 Tool/Special . | . . Unused Backups 8 | . 8 Power . | . . Propulsion . | . . Utility 4 | . 4 Weapon 4 | . 4 Tool/Special . | . . Average Slot Usage (%) 82 | . 82 Engine 10 | . 10 Wheel 19 | . 19 Device 13 | . 13 Storage 10 | . 10 Energy Gun 12 | . 12 Ballistic Gun 1 | . 1 Launcher 12 | . 12 Peak Build Rating 12 | 5 12 Average Rating 9 | 3 9 On Entrance 2 | . 5 Avg Prop Armor Cover (%) . | . . Naked Turns . | . . Heaviest Build 92 | 6 92 Greatest Support 26 | 26 26 Greatest Overweight (x) 28 | . 28 Average Overweight (x) 2 | . 2 Largest Inventory Capacity 25 | 5 25 Average Capacity 17 | 5 18 Most Carried 12 | 1 12 Average Carried 7 | . 7 Final Capacity 25 | 5 25 Final Carried 10 | 1 10 Class Distribution -------------------- 92% | Mutant 7% | Scavenger-Mutant Dominant Class ---------------- Mutant | -10/Materials Resources | -11 -10 ----------- Run | Yrd Mat Matter Collected 668 | 134 534 Remotely . | . . Salvage Created 872 | . 872 Parts 53 | . 53 Haulers Intercepted 2 | . 2 Recyclers Shooed . | . . Parts Field Recycled . | . . Retrieved Matter . | . . Parts Self-Destructed . | . . Prevented . | . . Parts Restored . | . . Kills | -11 -10 ------- Run | Yrd Mat Combat Hostiles Destroyed 20 | . 20 Melee 1 | . 1 Guns 5 | . 5 AOE 14 | . 14 Classes Destroyed 8 | . 8 Worker 3 | . 3 Builder 4 | . 4 Tunneler 1 | . 1 Hauler 2 | . 2 Recycler 2 | . 2 Operator 2 | . 2 Watcher 1 | . 1 Grunt 20 | . 20 Best Kill Streak 6 | . 6 Combat Bots Only 3 | . 3 Max Kills in Single Turn 3 | . 3 Gunslinging . | . . Exploded 2 | . 2 Melee 1 | . 1 Uniques/NPCs Destroyed . | . . Combat | -11 -10 -------- Run | Yrd Mat Hostile Shots Fired 68 | . 68 Missed 14 | . 14 Hits 54 | . 54 Projectile 54 | . 54 Damage Taken 870 | . 870 Core 255 | . 255 Absorbed by Shields . | . . Core Remaining (%) 100 | 100 . Volleys Fired 50 | . 50 Largest 2 | . 2 Hottest 130 | . 130 Shots Fired 93 | . 93 Gun 54 | . 54 Cannon . | . . Launcher 39 | . 39 Special . | . . Kinetic 7 | . 7 Thermal 47 | . 47 Explosive 39 | . 39 Electromagnetic . | . . Robot Hit Streak 6 | . 6 Robot Miss Streak 5 | . 5 Penetration Max . | . . Secondary Targets . | . . Shots Hit Robots 45 | . 45 Core Hits 63 | . 63 Critical Kills . | . . Critical Parts Destroyed . | . . Critical Strikes 1 | . 1 Burn 1 | . 1 Melee Attacks . | . . Impact . | . . Slashing . | . . Piercing . | . . Sneak Attacks . | . . Combat Hostiles . | . . Follow-up Attacks . | . . Damage Inflicted 2135 | . 2135 Guns 528 | . 528 Cannons . | . . Explosions 1574 | . 1574 Melee . | . . Ramming 33 | . 33 Kinetic 49 | . 49 Thermal 479 | . 479 Explosive 1574 | . 1574 Electromagnetic . | . . Impact . | . . Slashing . | . . Piercing . | . . Highest Corruption 1 | . 1 Average Corruption 1 | . 1 Corruption Purged . | . . Corruption Blocked . | . . Effects 4 | . 4 Message Errors 1 | . 1 Matter Fused 2 | . 2 Data Loss (major) 1 | . 1 Overload Shots . | . . Overflow Damage 45 | . 45 Projectiles . | . . Explosions 45 | . 45 Melee . | . . Knockbacks . | . . Impact . | . . Kinetic . | . . Secondary . | . . Self-Inflicted Damage 210 | . 210 Shots 7 | . 7 Rammed 7 | . 7 Targets Rammed 7 | . 7 Kicked . | . . Crushed . | . . Highest Temperature 526 | . 526 Average Temperature 160 | . 160 Received Heat Transfer 393 | . 393 Effects 6 | . 6 Shutdowns 2 | . 2 Energy Bleed 1 | . 1 Interference 3 | . 3 Siege Activations . | . . Martial Activations . | . . Shielding Activations . | . . Robots Disrupted . | . . Combat Hostiles . | . . Robots Corrupted . | . . Combat Hostiles . | . . Parts Fried . | . . Impact Corruptions . | . . Robots Melted . | . . Combat Hostiles . | . . Parts Melted . | . . Heat Transferred 1149 | . 1149 Parts Sabotaged . | . . Parts Stolen . | . . Parts Stripped . | . . Power Chain Reactions . | . . Alert | -11 -10 ------- Run | Yrd Mat Maximum Alert Level 2 | . 2 Low Security (%) 33 | 100 30 Level 1 64 | . 67 Level 2 1 | . 1 Level 3 . | . . Level 4 . | . . Level 5 . | . . High Security . | . . Max Security . | . . Peak Influence 421 | . 421 Initial . | . . Average 231 | . 241 Influence Increases 862 | . 862 Destroy 0b10 Robot/C 400 | . 400 Destroy 0b10 Robot/NC 75 | . 75 Destroy Leader 116 | . 116 Successful Hack 27 | . 27 Disable Machine 75 | . 75 Destroy Structure 154 | . 154 Lose Combat Pursuer 15 | . 15 Influence Decreases 441 | . 441 Time Decay 371 | . 371 Lost Part 70 | . 70 Squads Dispatched 7 | . 7 Investigation 6 | . 6 Extermination . | . . Reinforcement 1 | . 1 Assault . | . . Garrison . | . . Intercept . | . . Searches Triggered . | . . Construction Impeded . | . . Haulers Reinforced . | . . Active Scanning Responses . | . . Cargo Convoy Interrupts . | . . Stealth | -11 -10 --------- Run | Yrd Mat Distress Signals 2 | . 2 Communications Jammed . | . . Distress Signals . | . . Times Spotted 29 | . 29 Peak Tracking Total 5 | . 5 Tactical Retreats 1 | . 1 Traps | -11 -10 ------- Run | Yrd Mat Traps Triggered 1 | . 1 Indirectly . | . . Trap Hack Attempts . | . . Triggered . | . . Disarmed . | . . Reprogrammed . | . . Reused . | . . Traps Extracted . | . . Installed . | . . Triggered . | . . Machines | -11 -10 ---------- Run | Yrd Mat Machines Disabled 5 | . 5 Max in Single Turn 3 | . 3 Machines Repaired . | . . Machines Dismantled . | . . Machines Sabotaged . | . . Overloaded Fab Kills . | . . Hacking | -11 -10 --------- Run | Yrd Mat Machines Accessed 6 | . 6 Terminals 6 | . 6 Fabricators . | . . Repair Stations . | . . Recycling Units . | . . Scanalyzers . | . . Garrison Access . | . . Total Hacks 24 | . 24 Successful 7 | . 7 Failed 17 | . 17 Catastrophic 10 | . 10 Database Lockouts . | . . Manual 15 | . 15 Terminals 24 | . 24 Fabricators . | . . Repair Stations . | . . Recycling Units . | . . Scanalyzers . | . . Garrison Access . | . . Terminal Hacks 7 | . 7 Robot Analysis 1 | . 1 Prototype ID Bank 2 | . 2 Terminal Index 1 | . 1 Registered Components 1 | . 1 Zone Layout 2 | . 2 Fabricator Hacks . | . . Repair Station Hacks . | . . Recycling Unit Hacks . | . . Scanalyzer . | . . Garrison Access Hacks . | . . Unauthorized Hacks . | . . Terminals . | . . Fabricators . | . . Repair Stations . | . . Recycling Units . | . . Scanalyzers . | . . Garrison Access . | . . Data Cores Recovered . | . . Used . | . . Hacking Detections 6 | . 6 Full Trace Events 6 | . 6 Feedback Events 1 | . 1 Corruption 1 | . 1 Feedback Blocked . | . . Robot Schematics Acquired . | . . Robots Built . | . . Authchips . | . . Time . | . . Total Robot Build Rating . | . . Part Schematics Acquired . | . . Parts Built . | . . Authchips . | . . Time . | . . Total Part Build Rating . | . . Part Studies Acquired . | . . Parts Repaired . | . . Time . | . . Parts Recycled . | . . Recycled Matter . | . . Retrieved Matter . | . . Retrieved Components . | . . Parts Scanalyzed . | . . Part Schematics Acquired . | . . Parts Damaged . | . . Bothacking | -11 -10 ------------ Run | Yrd Mat Used RIF Installer . | . . Robots Hacked . | . . Non-combat . | . . Combat . | . . Robot Hacks Applied . | . . Relay Couplers Released . | . . Fabnet Peak Effective % . | . . Robots Rewired . | . . Allies Hacked . | . . Hacks Repelled . | . . Allies | -11 -10 -------- Run | Yrd Mat Total Allies . | . . Largest Group . | . . Highest-Rated Group . | . . Highest-Rated Ally . | . . Total Orders . | . . Ally Attacks . | . . Total Damage . | . . Kills . | . . Allies Corrupted . | . . Allies Melted . | . . Intel | -11 -10 ------- Run | Yrd Mat Active Infowar (turns) 911 | . 911 Terrain 911 | . 911 Robot Analysis Total 1 | . 1 Derelict Logs Recovered . | . . Drone Launches . | . . Drone Recoveries . | . . Exploration | -11 -10 ------------- Run | Yrd Mat Turns Passed 957 | 41 916 Spaces Moved 498 | 39 459 Core 12 | 2 10 Treads . | . . Legs . | . . Wheels 486 | 37 449 Hover . | . . Flight . | . . Fastest Speed 50 | 50 90 Average Speed 140 | 83 145 Slowest Speed 1450 | 90 1450 Overloaded Moves . | . . Propulsion Burnouts . | . . Robots Hopped . | . . Potential Cave-ins . | . . Cave-ins Triggered . | . . Exploration Rate (%) 35 | 3 67 Regions Visited 1 Branch Regions . Pre-discovered Areas . | . . Known Exits Taken . | . . Unknown Exits Taken 1 | 1 . Scrap Searched . | . . Spaces Dug . | . . Terrain Destroyed 224 | . 224 Melee . | . . Projectile . | . . AOE 224 | . 224 Terrain Rammed . | . . Walls Destroyed . | . . Machines Disabled . | . . Actions | -11 -10 --------- Run | Yrd Mat Total 652 | 44 608 Wait 49 | . 49 Move 497 | 38 459 Hop . | . . Pick Up 14 | 1 13 Fast Attach 14 | 5 9 Attach 7 | . 7 Detach 6 | . 6 Swap 2 | . 2 Drop 6 | . 6 Fire 50 | . 50 Melee . | . . Ram 7 | . 7 Kick . | . . Crush . | . . Escape Stasis . | . . Rewire . | . . Trap . | . . Miscellaneous . | . . Route ------- -11/Scrapyard -10/Materials (discovered 2 exits: [*Mat x2]) History --------- Turn | Location | Event 21 | -11/Scrapyard | Discovered new exit (range 15) 42 | -11/Scrapyard | Entered Materials 315 | -10/Materials | Build established: Mutant 363 | -10/Materials | Discovered new exit (range 5) 544 | -10/Materials | Core integrity fell below 50% 716 | -10/Materials | Lost 3 parts (1p1n1w) 742 | -10/Materials | Derelicts attacked the area 804 | -10/Materials | Core integrity fell below 20% 892 | -10/Materials | Discovered new exit (range 16) 958 | -10/Materials | Destroyed self with Grenade Launcher Last Messages --------------- 00878_ Acquired Wheel. 00883_ Acquired Lgt. Ion Engine. 00892_ EXIT=FOUND 00904_ Triggered Alarm Trap. 00904_ An alarm sounds. 00904_ ALERT: Alarm triggered, dispatching investigation squad. 00910_ Connecting with Terminal... >>Layout(Zone) Retrieving Zone 2P layout... Downloaded map data. 00910_ ALERT: Suspicious activity at Terminal M001. Dispatching Investigation squad. 00910_ Terminal unresponsive. 00913_ Electrolysis Chamber disabled. 00916_ G-34 Mercenary destroyed. 00934_ Connecting with Terminal... 00934_ ALERT: Suspicious activity at Terminal M007. Dispatching Investigation squad. 00943_ G-34 Mercenary destroyed. Map ----- +----------------------------------------------------+ | ???????????????????????????#??#""""" | | ????????????????????????????#?#""""" | | ?????????????????????????#????# """ | | ?????????????????? ???# ?????## | | ???????????????????? ?? ??#??## | | ???????????????????? ?# ??######## ##+# | | ??????????????? ? ??? ??# ! # # | | ????????????#???? ????? ### #!## | | ??????????##?????? ?? ? #"" !! # | | ??!????#???##???? ????# #"Y !! = | | ??????????#?#??#?##+### #"" ! | | ????????????#??#??# #?# ### # | | ?????????#?????#??# ### ### "Y" #! | | ????? ???????#?#?## #?# #?# """ ### | | ???????#?#?##?????# ### ############### | | ??????? ?# ????## ### ############## = | | ?????????# ### % | | ??????"" + = ! | | # """ # ### =R= [ | | # # ##### R #+######## ### | | # """ ########### ##?# #?## | | # """ #?# #[ ####+#??# | | # """ ### """ # # ## ?# | | # ### """ # # ## # | | ##########?# """ # # ## # | | #??????????# @ # # ## # | | #########?## """ # # ! ## # | | # #### """ # # ! ## + | | # + + """ # # ######### | | # # # # # ##?#??### | | # # #####+#### # #??#????# | | # # #########???????# | | # + ###??#?????#???## | | # # T #????????#???#??# | | # ### """ #????????#?###### | | # #?# "" ##??#?#????# | | # #?# #??????????# | | # #?# ! = #??????????# | | ###"T"###?# == #????#??#??# ##+ | | ??#####?###+## =%* #??#??????## # | | ????????# %= #?????????## #" | | ?????#??# """ #?????#???# * #T | | ????????# """" #???????#?##| #" | | ???????## """" + #??????????# # | | ??#?????# # < #??????????# # | | ????#???# # #??????????####### | | ??#?????# #####????????????????# | | ????????# #????????????????????? | | ????????###########???????????#???##???# | | ???????????????????????????????????????? | +----------------------------------------------------+ Best States ------------- Heat Dissipation 25 Energy Generation 10 Energy Capacity 250 Matter Stores 240 Matter Capacity 400 Sight Range 16 Terrain Scan Range 16 Terrain Scan Density 10 Evasion (%) 44 Item Schematics ----------------- None Robot Schematics ------------------ None Fabricated ------------ Nothing Repaired ---------- Nothing Studied --------- None Alien Tech Used ----------------- None Achievements -------------- Fist Fight Well Done Challenges ------------ None Game ------ Seed HeavyPersonalFrame Manual? 0 Play Time 00:15:35 Cumulative 15.7 hours Start 2026.09.03 @ 00:48:01 End 2026.09.03 @ 01:02:22 Sessions 1 Manual Loads 0 Difficulty Rogue Special Mode None Game No. 31 Rogue 31 Adventurer 0 Explorer 0 Win Type - Total 0 Types 0/0/0/0/0/0/0/0/0/0 Lore% 12 Gallery% 10 Achievement% 11 Wizard Run 0 Options --------- Layout 1 ASCII 0 Keyboard 0 Movement Mouse Keybinds 0 Fullscreen 1 Font 24/Smallcaps Map View 50x35 Zoom Use 0% Tactical HUD 1 Map Filters NONE Filters NONE Steam 1 RUN: 1e80e8db-db38-49c4-b362-9ea31ae89113